bitfinex/quotes_ETHUSD_20260308
["timestamp","ask_amount","ask_price","bid_price","bid_amount"]
[1772986067625,1.75709872,1942.9,1942.5,0.0011]
[1772986067801,2.76774441,1942.9,1942.5,0.4557107]
[1772986068722,3.23706373,1942.9,1942.5,0.4557107]
[1772986069727,1.95031932,1942.9,1942.6,0.4546107]
[1772986073638,0.46931932,1942.8,1942.5,1.2880594]
[1772986074050,0.46931932,1942.8,1942.5,0.0011]
[1772986074336,0.002,1943.2,1942.6,0.4546107]
[1772986074510,0.47131932,1943.2,1942.6,0.4546107]
[1772986075525,0.46931932,1943.1,1942.6,0.4546107]
[1772986076340,0.46931932,1943.1,1942.7,1.74147949]
[1772986076637,0.46931932,1943.1,1942.8,0.4546107]
[1772986078635,0.46931932,1943.1,1942.8,1.7413825]
[1772986078836,0.002,1943.2,1942.9,0.4546107]
[1772986079049,0.47131932,1943.2,1942.9,0.4546107]
[1772986079915,1.481,1943.1,1942.9,0.4546107]
[1772986085344,1.481,1943.1,1942.9,1.74133823]
[1772986086347,0.002,1943.2,1943.0,0.45782787]
[1772986086644,1.483,1943.1,1943.0,0.45782787]
[1772986088542,0.002,1943.2,1943.0,0.45782787]
[1772986088720,1.483,1943.1,1943.0,0.45782787]
[1772986089241,0.002,1943.2,1943.0,0.45782787]
[1772986089419,1.483,1943.1,1943.0,0.45782787]
[1772986089617,1.96990656,1943.1,1942.8,0.45782787]
[1772986089826,1.96990656,1943.1,1942.8,1.28679334]
[1772986090368,1.96990656,1943.1,1943.0,0.001]
[1772986091749,1.97190656,1943.1,1943.0,0.001]
[1772986104072,0.48890656,1943.1,1943.0,0.001]
[1772986104371,1.97390656,1943.1,1943.0,0.001]
[1772986107872,0.48890656,1943.1,1943.0,0.001]
[1772986108078,1.97490656,1943.1,1943.0,0.001]
[1772986109779,0.48890656,1943.1,1943.0,0.001]
[1772986109978,1.97490656,1943.1,1943.0,0.001]
[1772986111782,1.488,1943.1,1943.0,0.001]
[1772986112776,0.002,1943.1,1943.0,0.001]
[1772986113080,1.489,1943.1,1943.0,0.001]
[1772986116270,1.49,1943.1,1943.0,0.48262297]
[1772986117070,1.49,1943.1,1943.0,0.001]
[1772986117249,0.002,1943.2,1943.1,0.48162297]
[1772986117453,1.49,1943.2,1943.1,0.48162297]
[1772986117982,0.002,1943.2,1943.1,0.48162297]
[1772986119489,0.002,1943.2,1943.1,1.76822685]
[1772986122483,1.97821946,1943.4,1943.1,1.76822685]
[1772986122661,1.488,1943.4,1943.2,0.48162297]
[1772986122863,1.49,1943.5,1943.2,0.48162297]
[1772986123465,0.002,1943.7,1943.2,0.48162297]
[1772986123692,0.39743801,1943.8,1943.2,0.48162297]
[1772986124971,0.39743801,1943.8,1943.4,0.48162297]
[1772986125167,0.002,1943.8,1943.4,0.48162297]
[1772986126682,0.49221946,1943.8,1943.4,0.48162297]
[1772986127464,0.49221946,1943.8,1943.5,1.28633907]
[1772986127666,0.49221946,1943.8,1943.5,1.76796204]
[1772986129882,0.002,1943.8,1943.5,1.76796204]
[1772986130077,0.002,1943.8,1943.5,1.28633907]
[1772986130278,0.002,1943.8,1943.6,0.48162297]
[1772986130474,0.49021946,1943.6,1943.2,0.48162297]
[1772986133405,0.49021946,1943.5,1943.2,1.28653515]
[1772986135690,0.49021946,1943.5,1943.2,0.48162297]
[1772986136078,0.49021946,1943.6,1943.2,0.48162297]
[1772986138099,0.49021946,1943.6,1943.1,0.001]
[1772986138100,0.49021946,1943.4,1943.0,0.001]
[1772986140106,0.49021946,1943.2,1943.0,0.001]
[1772986140289,1.28647146,1943.3,1943.0,0.001]
[1772986140290,1.97221946,1943.1,1943.0,0.001]
[1772986141120,1.28647146,1943.3,1943.0,0.001]
[1772986141318,1.482,1943.2,1943.0,0.001]
[1772986141539,1.482,1943.2,1943.0,0.48262297]
[1772986141718,1.482,1943.5,1943.0,0.48262297]
[1772986141928,1.97221946,1943.5,1943.0,0.48262297]
[1772986142534,3.25860465,1943.5,1943.1,0.48262297]
[1772986143444,0.45366938,1943.4,1943.1,0.48262297]
[1772986145358,1.74008194,1943.4,1943.1,0.48262297]
[1772986145658,0.45366938,1943.4,1943.1,0.48262297]
[1772986146661,3.22407911,1943.4,1943.1,0.48262297]
[1772986147356,1.93766938,1943.4,1943.1,0.48262297]
[1772986150861,1.93766938,1943.4,1943.1,1.76921624]
[1772986151057,1.486,1943.4,1943.2,0.45356994]
[1772986153568,1.78137379,1943.6,1943.2,0.45356994]
[1772986153861,1.487,1943.5,1943.2,0.45356994]
[1772986154180,0.49507004,1943.6,1943.3,0.45356994]
[1772986154350,1.487,1943.5,1943.3,0.45356994]
[1772986154763,1.78331967,1943.7,1943.3,0.45356994]
[1772986154764,0.49707004,1943.7,1943.3,0.45356994]
[1772986154954,0.002,1943.4,1943.3,0.45356994]
[1772986155280,1.487,1943.6,1943.3,0.45356994]
[1772986155585,1.489,1943.6,1943.3,0.45356994]
[1772986155873,1.489,1943.6,1943.4,1.28640526]
[1772986156166,0.002,1943.7,1943.4,1.28640526]
[1772986156167,0.002,1943.7,1943.5,0.45356994]
[1772986156470,5.1476287,1944.0,1943.5,0.45356994]
[1772986156471,0.4986089,1944.0,1943.5,0.45356994]
[1772986156635,1.78462603,1944.0,1943.5,0.45356994]
[1772986157037,0.4986089,1944.0,1943.5,0.45356994]
[1772986158477,0.00353886,1944.0,1943.7,0.45356994]
[1772986163573,1.481,1944.1,1943.8,0.45356994]
[1772986163875,1.481,1944.1,1943.9,0.45356994]
[1772986164170,0.49507004,1944.7,1943.9,0.45356994]
[1772986164755,0.49507004,1944.4,1943.5,0.45356994]
[1772986167378,0.49507004,1944.2,1943.8,0.001]
[1772986167575,1.83707004,1944.1,1943.8,0.001]
[1772986167875,0.002,1943.9,1943.8,0.001]
[1772986175857,0.002,1943.9,1943.8,0.49676634]
[1772986179908,0.002,1944.0,1943.8,0.49676634]
[1772986180111,2.73190537,1944.2,1943.9,0.49576634]
[1772986180468,1.28790537,1944.2,1943.9,0.49576634]
[1772986181170,1.28790537,1944.2,1943.9,0.49676634]
[1772986181867,0.002,1944.0,1943.9,0.49676634]
[1772986189901,0.002,1944.0,1943.9,0.001]
[1772986191282,0.48520691,1944.0,1943.9,0.001]
[1772986193690,0.002,1944.0,1943.9,0.001]
[1772986194688,0.48520691,1944.0,1943.9,0.001]
[1772986200212,0.002,1944.0,1943.9,0.001]
[1772986200919,0.48320691,1944.4,1944.0,0.49576634]
[1772986201098,1.477,1944.4,1944.0,0.49576634]
[1772986201299,2.75859706,1944.7,1944.0,0.49576634]
[1772986202016,0.48320691,1944.6,1944.0,0.49576634]
[1772986202216,1.28567755,1944.5,1943.9,0.001]
[1772986202392,0.48320691,1944.4,1943.9,0.001]
[1772986203723,0.48320691,1944.4,1943.9,0.4791634]
[1772986203919,1.476,1944.3,1943.9,0.4791634]
[1772986204222,1.276,1944.3,1944.2,0.4781634]
[1772986205632,1.216,1944.3,1944.2,0.4781634]
[1772986206105,0.47896079,1944.6,1944.2,0.4781634]
[1772986206293,0.47896079,1944.6,1944.2,1.28584667]
[1772986206491,0.47896079,1944.6,1944.3,0.45636459]
[1772986207492,0.47896079,1944.6,1944.3,0.45736459]
[1772986207912,1.76457291,1944.6,1944.3,0.45736459]
[1772986209023,0.002,1944.5,1944.3,0.45736459]
[1772986212106,2.76559518,1944.7,1944.4,0.45636459]
[1772986212313,1.48,1944.7,1944.4,0.45636459]
[1772986212498,2.76555486,1944.7,1944.4,0.45636459]
[1772986213428,3.23700584,1944.7,1944.4,0.45636459]
[1772986214031,1.75700584,1944.7,1944.4,0.45636459]
[1772986214924,0.47145098,1944.7,1944.4,0.45636459]
[1772986215228,0.47145098,1944.6,1944.3,0.001]
[1772986215526,0.47145098,1944.6,1944.3,0.45736459]
[1772986216539,3.23794341,1944.8,1944.3,0.45736459]
[1772986216918,1.75694341,1944.8,1944.3,0.45736459]
[1772986217236,2.76849328,1944.8,1944.3,0.45736459]
[1772986217437,3.23994426,1944.8,1944.3,0.45736459]
[1772986218439,3.23994426,1944.8,1944.4,0.45636459]
[1772986218911,0.47145098,1944.7,1944.4,0.45636459]
[1772986219511,0.47145098,1944.7,1944.3,0.45736459]
[1772986219912,0.47145098,1944.7,1944.3,0.001]
[1772986220125,0.47145098,1944.7,1944.3,1.28680844]
[1772986221114,0.47145098,1944.7,1944.3,1.74317303]
[1772986222439,0.47145098,1944.7,1944.4,0.001]
[1772986222642,0.002,1944.6,1944.4,0.001]
[1772986223018,0.47345098,1944.6,1944.4,0.001]
[1772986225630,1.28762835,1944.6,1944.4,0.001]
[1772986225831,0.47145098,1944.5,1944.4,0.001]
[1772986233951,0.002,1944.6,1944.4,0.001]
[1772986234151,0.49276757,1944.6,1944.4,0.001]
[1772986234762,0.002,1944.6,1944.4,0.49724209]
[1772986237878,0.002,1944.6,1944.5,0.001]
[1772986243483,0.49276757,1944.6,1944.5,0.001]
[1772986261609,0.002,1944.6,1944.5,0.001]
[1772986275426,0.002,1944.6,1944.3,0.001]
[1772986275725,0.48493652,1944.5,1944.3,0.001]
[1772986277620,0.48493652,1944.3,1944.1,0.001]
[1772986277801,1.98493652,1944.2,1944.1,0.001]
[1772986286108,0.48493652,1944.1,1944.0,0.001]
[1772986286303,0.48493652,1944.1,1944.0,0.003]
[1772986287521,0.48392253,1944.1,1944.0,0.003]
[1772986291437,1.77068256,1944.4,1944.0,0.47540368]
[1772986291602,0.48693652,1944.5,1944.0,0.47540368]
[1772986291808,0.48493652,1944.3,1944.0,0.001]
[1772986293334,0.48493652,1944.3,1944.1,0.001]
[1772986293507,0.48693652,1944.3,1944.1,0.001]
[1772986293926,0.002,1944.3,1944.1,0.001]
[1772986294136,0.002,1944.3,1944.1,0.48167128]
[1772986294817,0.50189465,1944.3,1944.1,0.001]
[1772986298043,0.49989465,1944.2,1944.1,0.001]
[1772986299610,0.49989465,1944.2,1944.0,0.001]
[1772986300018,0.49989465,1944.1,1944.0,0.001]
[1772986303349,1.78583673,1944.1,1944.0,0.001]
[1772986305641,1.28594208,1944.1,1943.8,0.001]
[1772986305946,0.49989465,1944.0,1943.8,0.001]
[1772986308327,1.78591477,1944.0,1943.8,0.001]
[1772986308646,0.49989465,1943.9,1943.8,0.001]
[1772986310536,1.78596903,1943.9,1943.8,0.001]
[1772986310940,1.78596903,1943.9,1943.6,0.001]
[1772986310941,0.49989465,1943.8,1943.6,0.001]
[1772986311141,0.49989465,1943.8,1943.2,0.001]
[1772986311551,0.49989465,1943.6,1943.2,0.001]
[1772986312645,0.49989465,1943.6,1943.1,0.001]
[1772986312827,0.49989465,1943.0,1942.8,0.001]
[1772986313024,0.49989465,1942.9,1942.8,0.001]
[1772986314149,0.49989465,1943.3,1942.8,0.48167128]
[1772986314355,1.28640526,1943.5,1942.8,0.48167128]
[1772986314356,1.508,1943.1,1942.8,0.48167128]
[1772986314733,2.00789465,1943.1,1942.8,0.48167128]
[1772986315659,1.508,1943.1,1942.8,0.48167128]
[1772986315858,1.501,1943.3,1942.9,0.48067128]
[1772986316229,2.00089465,1943.3,1942.9,0.48067128]
[1772986316634,0.49989465,1943.2,1942.9,0.48067128]
[1772986317765,1.78644267,1943.2,1942.9,0.48167128]
[1772986321861,3.28844267,1943.2,1942.9,0.48167128]
[1772986324250,0.45362408,1943.1,1942.9,0.001]
[1772986325567,0.45362408,1943.1,1942.8,0.001]
[1772986325868,0.45063442,1943.0,1942.6,0.0011]
[1772986326339,0.45063442,1942.8,1942.6,0.0011]
[1772986327765,1.506,1942.7,1942.6,0.0011]
[1772986327970,1.95663442,1942.7,1942.6,0.0011]
[1772986328588,3.24350321,1942.7,1942.6,0.0011]
[1772986329779,1.506,1942.7,1942.5,0.47984015]
[1772986329951,1.28667105,1943.0,1942.5,0.47984015]
[1772986330151,1.494,1942.9,1942.5,0.47984015]
[1772986331272,0.45063442,1942.8,1942.5,0.0011]
[1772986331575,0.45063442,1942.8,1942.7,0.0011]
[1772986332653,0.45063442,1942.8,1942.5,0.0011]
[1772986333477,1.73749832,1942.8,1942.5,0.0011]
[1772986333658,0.45063442,1942.7,1942.5,0.0011]
[1772986334482,0.45063442,1942.7,1942.3,0.0011]
[1772986334870,0.45063442,1942.5,1942.0,0.00153886]
[1772986335070,0.45063442,1942.3,1942.0,0.00153886]
[1772986335472,1.73779019,1942.3,1942.0,0.00153886]
[1772986336285,0.45063442,1942.2,1942.0,0.00153886]
[1772986337553,1.73790078,1942.1,1942.0,0.00153886]
[1772986337951,1.73790078,1942.1,1941.2,0.47874015]
[1772986337952,0.45063442,1942.0,1941.2,0.47874015]
[1772986338157,0.45063442,1941.8,1941.2,0.47874015]
[1772986338455,1.504,1942.3,1941.2,0.47874015]
[1772986339770,1.73771062,1942.4,1941.4,0.47874015]
[1772986340079,1.485,1942.3,1941.4,0.47874015]
[1772986340456,1.93563442,1942.3,1941.4,0.47874015]
[1772986340658,0.45063442,1942.3,1941.4,0.47874015]
[1772986341300,0.45063442,1942.7,1941.6,0.47874015]
[1772986341453,1.73740118,1942.9,1941.8,0.47874015]
[1772986341955,0.45063442,1942.8,1942.0,0.47874015]
[1772986343987,0.001,1942.3,1942.1,1.28726636]
[1772986344183,0.001,1942.3,1942.2,0.47874015]
[1772986344886,0.45063442,1942.7,1942.2,0.47874015]
[1772986346059,0.45063442,1942.7,1942.4,0.47874015]
[1772986346260,1.482,1942.9,1942.4,0.47874015]
[1772986346261,0.45063442,1942.8,1942.4,0.47874015]
[1772986347881,0.45063442,1942.8,1942.3,0.47874015]
[1772986348189,0.45063442,1942.7,1942.3,1.76584264]
[1772986349276,0.45063442,1942.7,1942.4,0.47874015]
[1772986350297,0.45063442,1942.7,1942.4,1.7657789]
[1772986351291,3.22341712,1942.9,1942.5,0.46202564]
[1772986351992,0.45063442,1942.9,1942.5,0.46202564]
[1772986352194,0.45063442,1942.9,1942.6,0.46202564]
[1772986352970,1.73737152,1942.9,1942.6,0.46202564]
[1772986353701,0.45063442,1942.9,1942.6,0.46202564]
[1772986354382,1.73737181,1942.9,1942.6,0.46202564]
[1772986354698,0.45063442,1942.9,1942.6,0.46202564]
[1772986356499,0.45063442,1942.9,1942.6,1.74892997]
[1772986356670,1.98973659,1943.0,1942.7,0.46202564]
[1772986357205,0.00253886,1943.0,1942.7,0.46202564]
[1772986357408,0.001,1942.8,1942.7,0.46202564]
[1772986360404,0.001,1942.8,1942.7,1.74889443]
[1772986365216,0.001,1942.8,1942.7,0.46202564]
[1772986365512,0.001,1942.8,1942.6,1.74891121]
[1772986367514,0.001,1942.8,1942.4,0.0011]
[1772986367515,0.49819773,1942.8,1942.4,0.0011]
[1772986367720,0.49819773,1942.8,1942.4,0.46312564]
[1772986369894,0.001,1942.8,1942.5,1.28700128]
[1772986370147,0.00253886,1943.0,1942.6,0.46102564]
[1772986372049,0.49973659,1943.0,1942.7,1.74789443]
[1772986381147,0.49973659,1943.0,1942.7,0.46102564]
[1772986381356,0.49719773,1942.9,1942.6,1.28690751]
[1772986381844,0.49719773,1942.8,1942.4,1.7491676]
[1772986382045,0.49719773,1942.8,1942.7,0.0011]
[1772986382646,0.49719773,1942.8,1942.5,0.0011]
[1772986385659,0.45988155,1942.7,1942.5,0.0011]
[1772986387332,0.46088155,1942.9,1942.5,0.46322564]
[1772986387527,0.46088155,1942.9,1942.6,1.28693503]
[1772986387734,0.46088155,1942.9,1942.6,1.74906067]
[1772986388061,0.46088155,1942.9,1942.6,0.46212564]
[1772986390363,1.74762555,1942.9,1942.6,0.46212564]
[1772986390865,1.74762555,1942.9,1942.5,0.46322564]
[1772986393762,1.74762555,1942.9,1942.5,1.75021874]
[1772986393975,0.46088155,1942.9,1942.6,0.46212564]
[1772986394263,1.74761999,1942.9,1942.6,0.46212564]
[1772986395168,1.74761999,1942.9,1942.6,0.46322564]
[1772986395540,0.001,1942.8,1942.6,0.46322564]
[1772986402270,0.00253886,1943.0,1942.7,0.46212564]
[1772986403775,0.45988155,1943.2,1942.7,0.46212564]
[1772986404170,0.45988155,1943.2,1942.8,1.74892819]
[1772986406951,0.45988155,1943.1,1942.8,1.74892819]
[1772986407282,0.45988155,1943.1,1942.6,0.0011]
[1772986407656,0.45988155,1942.8,1942.6,0.0011]
[1772986416662,0.45215227,1942.9,1942.6,0.0011]
[1772986416870,0.45115227,1942.8,1942.6,0.0011]
[1772986419174,0.45115227,1942.8,1942.7,0.0011]
[1772986421095,1.73795482,1942.8,1942.7,0.0011]
[1772986421274,0.45115227,1942.8,1942.7,0.0011]
[1772986425588,0.45215227,1942.9,1942.7,0.0011]
[1772986427898,1.73889104,1942.9,1942.7,0.0011]
[1772986429002,0.45115227,1942.8,1942.7,0.0011]
[1772986431319,0.45115227,1942.7,1942.5,0.0011]
[1772986431473,0.45115227,1942.7,1942.1,0.0011]
[1772986431474,0.45115227,1942.6,1942.1,0.0011]
[1772986433710,0.45115227,1942.4,1942.1,0.0011]
[1772986433898,1.95515227,1942.4,1942.1,0.0011]
[1772986434208,0.45115227,1942.3,1942.1,0.0011]
[1772986436192,1.28720008,1942.2,1942.1,0.0011]
[1772986436395,1.73835235,1942.2,1942.1,0.0011]
[1772986437288,1.73835235,1942.2,1942.0,0.00153886]
[1772986437289,0.45115227,1942.1,1942.0,0.00153886]
[1772986437484,0.45115227,1942.1,1941.9,0.19921187]
[1772986439017,1.73842655,1942.1,1941.9,0.19921187]
[1772986439787,1.73842655,1942.1,1941.5,0.0011]
[1772986439788,0.45115227,1942.0,1941.5,0.0011]
[1772986440118,0.45115227,1941.8,1941.5,0.0011]
[1772986440488,0.45115227,1941.6,1941.2,0.0011]
[1772986441016,0.45115227,1941.2,1940.3,1.75432504]
[1772986441248,1.28766417,1941.5,1940.2,0.18140447]
[1772986441249,0.45115227,1940.8,1940.2,0.18140447]
[1772986441446,0.45115227,1940.7,1940.3,0.4658645]
[1772986441835,0.45115227,1940.9,1940.3,0.4658645]
[1772986442051,1.462,1941.0,1940.3,0.4658645]
[1772986442220,1.90115227,1941.0,1940.3,0.4658645]
[1772986442914,0.48127015,1940.9,1940.3,0.4658645]
[1772986443125,0.48127015,1940.9,1940.5,0.45743413]
[1772986443321,2.69494311,1941.1,1940.5,0.45743413]
[1772986443542,0.48127015,1941.0,1940.5,0.45743413]
[1772986447521,0.49323058,1941.1,1940.7,0.45537938]
[1772986447729,0.49323058,1941.2,1940.7,0.45537938]
[1772986449645,0.49323058,1941.0,1940.7,1.74357326]
[1772986451447,0.49323058,1941.0,1940.7,1.28819388]
[1772986451619,0.49323058,1941.0,1940.6,1.28821179]
[1772986451818,0.49323058,1941.0,1940.6,1.74359117]
[1772986452226,0.49323058,1941.0,1940.7,0.45537938]
[1772986453452,0.49323058,1941.2,1940.9,0.45537938]
[1772986454552,0.49323058,1941.4,1940.9,0.45537938]
[1772986454755,0.49323058,1941.7,1940.9,0.45537938]
[1772986455626,0.49323058,1941.7,1941.1,0.45537938]
[1772986456348,1.28757822,1941.7,1941.1,0.45537938]
[1772986456654,1.7808088,1941.7,1941.1,0.45537938]
[1772986456851,1.28757822,1941.7,1941.1,0.45537938]
[1772986457154,0.49323058,1941.6,1941.1,0.45537938]
[1772986458839,0.49323058,1941.6,1941.2,1.74324255]
[1772986459746,0.49323058,1941.6,1941.2,1.28786317]
[1772986459948,0.49323058,1941.6,1941.3,0.45537938]
[1772986466761,0.49323058,1941.5,1941.1,1.74326759]
[1772986466963,0.49323058,1941.5,1941.2,0.45537938]
[1772986467363,0.49323058,1941.6,1941.2,0.45537938]
[1772986468756,0.49323058,1941.5,1941.2,0.45537938]
[1772986468951,0.49323058,1941.5,1941.1,0.45537938]
[1772986469144,0.49323058,1941.7,1941.1,0.45537938]
[1772986469644,0.49323058,1941.7,1941.1,0.45647938]
[1772986470033,0.001,1941.5,1941.1,0.45647938]
[1772986472157,0.001,1941.5,1941.2,1.74324255]
[1772986472860,0.001,1941.5,1941.2,1.75372767]
[1772986473665,1.95089041,1941.8,1941.3,0.4658645]
[1772986473872,0.48742927,1942.0,1941.3,0.4658645]
[1772986474765,0.48742927,1942.0,1941.5,0.4658645]
[1772986476770,0.48742927,1942.0,1941.6,1.28759785]
[1772986476970,0.48742927,1942.0,1941.7,0.4658645]
[1772986478270,0.00153886,1942.0,1941.7,0.4658645]
[1772986479368,0.00153886,1942.0,1941.7,1.75336394]
[1772986479665,0.48742927,1942.0,1941.7,1.75336394]
[1772986479865,0.48742927,1942.0,1941.6,1.28753242]
[1772986480066,0.48742927,1942.0,1941.3,1.2877305]
[1772986480366,0.48742927,1942.0,1941.2,1.7536894]
[1772986481744,0.48589041,1941.8,1941.2,0.4658645]
[1772986481944,0.48589041,1941.8,1941.1,0.4669645]
[1772986482257,0.48589041,1941.8,1941.1,0.0011]
[1772986483267,0.48589041,1941.8,1941.5,0.0011]
[1772986483768,0.48589041,1941.6,1941.5,0.0011]
[1772986483973,1.97889041,1941.6,1941.5,0.0011]
[1772986484741,0.48589041,1941.5,1941.3,0.0011]
[1772986485873,1.77362091,1941.4,1941.1,0.0011]
[1772986486058,0.48589041,1941.3,1941.1,0.0011]
[1772986486755,0.48589041,1941.3,1941.0,0.0011]
[1772986488177,0.48589041,1941.1,1941.0,0.0011]
[1772986491046,1.498,1941.3,1941.0,0.4680645]
[1772986491453,1.98389041,1941.3,1941.0,0.4680645]
[1772986495569,3.27168879,1941.3,1941.0,0.4680645]
[1772986496153,2.78579838,1941.3,1941.0,0.0011]
[1772986496378,3.27168879,1941.3,1941.0,0.0011]
[1772986496579,3.27168879,1941.3,1941.1,0.0011]
[1772986496784,0.001,1941.2,1941.1,0.0011]
[1772986496953,0.48689041,1941.2,1941.1,0.0011]
[1772986500289,1.77475358,1941.2,1941.1,0.0011]
[1772986500666,0.48689041,1941.2,1941.1,0.0011]
[1772986501085,1.77475358,1941.2,1941.1,0.0011]
[1772986501382,0.48689041,1941.2,1941.1,0.0011]
[1772986501585,0.48589041,1941.1,1941.0,0.0011]
[1772986502677,1.77381993,1941.1,1941.0,0.0011]
[1772986503290,0.46087469,1941.0,1940.8,0.0011]
[1772986504862,3.28310392,1940.9,1940.8,0.0011]
[1772986505567,2.79206223,1940.9,1940.8,0.0011]
[1772986505967,3.28310392,1940.9,1940.8,0.0011]
[1772986506168,2.79206223,1940.9,1940.8,0.0011]
[1772986506362,3.28310392,1940.9,1940.8,0.0011]
[1772986508267,0.49104169,1940.8,1940.6,0.0011]
[1772986508471,5.15206816,1941.0,1940.9,0.0011]
[1772986508472,0.49104169,1941.0,1940.9,0.0011]
[1772986508774,1.99604169,1941.0,1940.9,0.0011]
[1772986510198,3.78403756,1941.0,1940.9,0.0011]
[1772986511474,3.78603756,1941.0,1940.9,0.0011]
[1772986513008,0.49104169,1940.9,1940.6,0.0011]
[1772986514800,1.77917029,1940.8,1940.6,0.0011]
[1772986516704,3.29501149,1941.0,1940.7,0.4650605]
[1772986516998,2.79501149,1941.0,1940.7,0.4650605]
[1772986517303,3.28605318,1941.0,1940.7,0.4650605]
[1772986518100,0.49104169,1940.9,1940.6,0.0011]
[1772986519314,1.2881286,1940.8,1940.6,0.0011]
[1772986520717,0.001,1941.2,1940.7,0.0011]
[1772986520900,1.28799553,1941.1,1940.8,0.4650605]
[1772986521194,2.79199553,1941.1,1940.8,0.4650605]
[1772986521573,2.79299553,1941.1,1940.8,0.4650605]
[1772986521975,3.28403722,1941.1,1940.8,0.4650605]
[1772986522200,0.49104169,1941.0,1940.6,0.0011]
[1772986523399,1.28804279,1941.0,1940.7,0.003104]
[1772986523769,2.79296779,1941.1,1940.7,0.003104]
[1772986523974,3.29141579,1941.1,1940.7,0.003104]
[1772986525109,0.498448,1941.0,1940.6,0.0011]
[1772986525694,1.28803505,1941.0,1940.7,0.003104]
[1772986525900,1.508,1941.1,1940.7,0.003104]
[1772986526414,2.006448,1941.1,1940.7,0.003104]
[1772986528114,0.498448,1941.1,1940.7,0.003104]
[1772986528320,0.001,1941.2,1940.7,0.003104]
[1772986529016,1.28886808,1941.2,1940.7,0.003104]
[1772986529178,1.78731608,1941.2,1940.7,0.003104]
[1772986529380,1.28769733,1941.5,1940.7,0.002104]
[1772986529584,3.28558524,1941.6,1940.7,0.002104]
[1772986530101,0.498948,1941.5,1940.7,0.002104]
[1772986530299,1.78667164,1941.5,1940.7,0.002104]
[1772986530790,2.78850565,1941.8,1940.7,0.002104]
[1772986530992,0.498948,1941.7,1940.7,0.002104]
[1772986531299,0.498948,1941.4,1940.6,0.0011]
[1772986531607,0.498948,1941.2,1940.6,0.003204]
[1772986531995,1.487,1941.3,1940.7,0.002104]
[1772986532312,0.498948,1941.2,1940.6,0.0011]
[1772986532487,1.78687752,1941.1,1940.6,0.003204]
[1772986533317,0.498948,1941.1,1940.7,0.002104]
[1772986533519,0.498948,1941.1,1940.7,0.003204]
[1772986535522,1.786936,1941.1,1940.7,0.003204]
[1772986536087,0.498948,1941.0,1940.7,0.003204]
[1772986536421,0.498948,1941.0,1940.7,0.0011]
[1772986536725,0.498948,1941.0,1940.6,0.0011]
[1772986537490,1.28806223,1940.9,1940.6,0.0011]
[1772986537687,1.28795931,1941.1,1940.7,0.003204]
[1772986537893,1.78635731,1941.1,1940.7,0.003204]
[1772986539097,3.28435731,1941.1,1940.7,0.003204]
[1772986541837,3.28935731,1941.1,1940.7,0.003204]
[1772986542038,0.498398,1941.0,1940.7,0.003204]
[1772986542935,0.498398,1941.0,1940.6,0.004304]
[1772986545443,1.78640873,1941.0,1940.7,0.0011]
[1772986546732,0.498398,1941.0,1940.7,0.0011]
[1772986546941,1.78640474,1941.0,1940.7,0.0011]
[1772986547329,0.498398,1941.0,1940.7,0.0011]
[1772986547539,1.7863947,1941.0,1940.7,0.0011]
[1772986548146,0.498398,1941.0,1940.7,0.0011]
[1772986548306,0.498398,1941.0,1940.7,0.004304]
[1772986548507,0.498398,1941.1,1940.8,0.003204]
[1772986548934,1.78634766,1941.1,1940.8,0.003204]
[1772986549131,0.498398,1941.0,1940.7,0.0011]
[1772986549318,0.498398,1941.0,1940.7,0.004304]
[1772986550113,0.498398,1941.2,1940.8,0.003204]
[1772986550310,1.78626162,1941.2,1940.8,0.003204]
[1772986551434,0.498398,1941.1,1940.7,0.0011]
[1772986552336,1.78636229,1941.1,1940.7,0.004304]
[1772986553042,0.498398,1941.1,1940.7,0.004304]
[1772986553241,1.78633887,1941.1,1940.7,0.004304]
[1772986557514,1.28789556,1941.2,1940.8,0.0011]
[1772986557813,0.499398,1941.0,1940.8,0.0011]
[1772986559442,1.28806223,1940.9,1940.8,0.0011]
[1772986559645,1.78646023,1940.9,1940.8,0.0011]
[1772986561449,0.497848,1940.8,1940.7,0.0011]
[1772986561653,0.497848,1940.7,1940.6,0.0011]
[1772986563545,0.497848,1940.5,1940.3,0.001]
[1772986563843,2.016848,1940.4,1940.3,0.001]
[1772986564635,0.497848,1940.3,1940.0,0.00153886]
[1772986564836,0.497848,1940.3,1940.0,0.00583886]
[1772986565075,0.497848,1940.3,1939.2,0.004304]
[1772986565230,0.497848,1940.1,1939.3,0.0043]
[1772986565434,0.497848,1940.1,1939.3,0.008604]
[1772986565628,0.497848,1939.9,1939.3,0.008604]
[1772986565839,1.496,1939.8,1939.3,0.008604]
[1772986566040,0.497848,1939.7,1939.0,0.00153886]
[1772986566243,0.497848,1939.6,1939.1,0.0043]
[1772986566420,0.497848,1939.6,1939.0,0.00153886]
[1772986567552,0.495698,1939.4,1939.0,0.00153886]
[1772986567726,0.495698,1939.2,1939.0,0.00153886]
[1772986569534,0.495698,1939.2,1938.3,5.15889625]
[1772986569535,0.495698,1939.2,1938.3,5.16750025]
[1772986569729,0.495698,1939.2,1938.1,7.6510511]
[1772986569730,0.495698,1939.0,1938.5,1.28965695]
[1772986569936,0.495698,1939.0,1938.5,1.29826095]
[1772986570118,0.495698,1939.0,1938.3,0.008604]
[1772986570565,0.495698,1939.0,1938.1,0.008604]
[1772986570926,0.495698,1938.8,1938.1,0.008604]
[1772986571431,0.495698,1938.8,1938.1,1.29851407]
[1772986572149,0.495698,1938.6,1938.1,0.008604]
[1772986572349,0.495698,1938.6,1938.1,1.29851768]
[1772986572773,0.495698,1938.6,1938.1,0.008604]
[1772986572933,0.495698,1938.6,1938.2,0.008604]
[1772986573645,0.495698,1938.6,1938.0,1.30009342]
[1772986574057,0.495698,1938.5,1938.0,1.30009342]
[1772986574233,0.495698,1939.3,1938.2,2.49600508]
[1772986574442,0.495698,1939.1,1938.3,0.008604]
[1772986574624,0.495698,1939.2,1938.3,0.008604]
[1772986574829,0.495698,1939.1,1938.3,0.008604]
[1772986576533,0.495698,1939.1,1938.2,1.29843637]
[1772986576534,0.495698,1939.0,1938.2,1.29843637]
[1772986577051,0.495698,1939.0,1938.1,1.2898582]